bitfinex/quotes_SOLUSD_20240915
["timestamp","ask_amount","ask_price","bid_price","bid_amount"]
[1726399132941,16.0319,136.0,135.95,0.37647]
[1726399133538,16.0319,136.0,135.98,0.25098]
[1726399134541,16.0319,136.0,135.98,30.25098]
[1726399134841,6.1828,136.02,135.98,30.25098]
[1726399135040,6.1828,136.02,135.99,0.12549]
[1726399135617,6.1828,136.02,136.0,0.25098]
[1726399135834,6.1828,136.02,136.01,0.12549]
[1726399136945,6.1828,136.02,136.01,30.37647]
[1726399137540,6.1828,136.02,136.01,54.153354]
[1726399140854,6.1828,136.02,136.01,30.37647]
[1726399142526,6.1828,136.02,136.01,0.37647]
[1726399143139,6.1828,136.02,135.94,30.0]
[1726399143445,6.1828,136.02,135.95,0.37647]
[1726399143643,6.1828,136.02,135.98,0.25098]
[1726399143837,6.1828,136.02,135.99,0.12549]
[1726399144636,6.1828,136.02,136.0,0.25098]
[1726399145045,6.1828,136.02,135.99,29.37647]
[1726399146552,16.2435,136.03,135.99,29.37647]
[1726399147161,0.2507174,136.04,136.0,0.37647]
[1726399147451,0.2507174,136.04,136.01,30.0]
[1726399159840,0.2507174,136.04,135.96,0.25098]
[1726399160047,0.2507174,136.04,135.98,0.25098]
[1726399160249,0.2507174,136.04,135.99,4.51886049]
[1726399160451,0.2507174,136.04,136.0,4.39337049]
[1726399160741,0.2507174,136.04,136.01,4.39337049]
[1726399160947,0.2507174,136.04,136.02,4.39337049]
[1726399161146,0.2507174,136.04,135.99,0.12549]
[1726399161370,0.2507174,136.04,136.0,4.39338875]
[1726399161551,0.2507174,136.04,136.01,4.39338875]
[1726399161760,0.2507174,136.04,136.02,4.39338875]
[1726399162074,0.2507174,136.04,135.98,0.25098]
[1726399162364,0.2507174,136.04,135.99,4.39351788]
[1726399162542,0.2507174,136.04,135.98,0.25098]
[1726399162947,0.2507174,136.04,136.0,4.3936102]
[1726399163141,0.2507174,136.04,135.99,4.3936102]
[1726399163356,0.2507174,136.04,136.01,4.3936102]
[1726399163554,0.2507174,136.04,135.98,0.25098]
[1726399163762,0.2507174,136.04,135.99,4.3936157]
[1726399163970,0.2507174,136.04,136.0,4.3936157]
[1726399164164,0.2507174,136.04,136.01,4.3936157]
[1726399164349,0.2507174,136.04,135.98,0.25098]
[1726399164672,0.2507174,136.04,135.99,4.39361318]
[1726399164849,0.2507174,136.04,136.0,4.39361318]
[1726399165050,0.2507174,136.04,136.01,4.39361318]
[1726399165253,0.2507174,136.04,135.98,0.25098]
[1726399165450,0.2507174,136.04,135.99,4.39374363]
[1726399165647,20.2507174,136.04,135.97,0.12549]
[1726399165843,20.2507174,136.04,136.0,4.39381635]
[1726399166254,20.2507174,136.04,135.98,4.39381635]
[1726399166477,20.2507174,136.04,135.99,4.39384048]
[1726399166650,20.2507174,136.04,136.0,4.39384048]
[1726399166974,20.2507174,136.04,135.96,0.37647]
[1726399167273,20.2507174,136.04,135.97,4.39393532]
[1726399167460,20.2507174,136.04,135.98,4.39393532]
[1726399167664,20.2507174,136.04,135.99,4.39393532]
[1726399167862,20.2507174,136.04,135.96,0.37647]
[1726399168057,20.2507174,136.04,135.97,4.39423025]
[1726399168258,20.2507174,136.04,135.98,4.39423025]
[1726399168472,20.2507174,136.04,135.99,4.39423025]
[1726399168676,20.2507174,136.04,135.96,0.37647]
[1726399168969,20.2507174,136.04,135.97,4.39427431]
[1726399169175,20.2507174,136.04,135.98,4.39427431]
[1726399169379,20.2507174,136.04,135.96,0.37647]
[1726399169546,23.27890243,136.03,135.96,0.37647]
[1726399169753,23.27890243,136.03,135.99,4.39427515]
[1726399170079,23.27890243,136.03,135.96,0.37647]
[1726399170265,23.27890243,136.03,135.97,4.39421714]
[1726399170482,23.27890243,136.03,135.98,4.39421714]
[1726399170773,23.27890243,136.03,135.99,4.39421714]
[1726399170982,23.27890243,136.03,135.96,0.37647]
[1726399171157,23.27890243,136.03,135.97,4.39426839]
[1726399171358,23.27890243,136.03,135.98,4.39426839]
[1726399171576,23.27890243,136.03,135.96,0.37647]
[1726399171753,23.27890243,136.03,135.97,4.39431498]
[1726399172078,23.27890243,136.03,135.98,4.39431498]
[1726399172379,23.27890243,136.03,135.96,0.37647]
[1726399172586,23.27890243,136.03,135.97,4.39426671]
[1726399172781,23.27890243,136.03,135.98,4.39426671]
[1726399172976,23.27890243,136.03,135.96,0.37647]
[1726399173659,23.27890243,136.03,135.98,0.12549]
[1726399173855,15.6131,136.03,135.98,0.12549]
[1726399174187,15.6131,136.03,135.98,0.25098]
[1726399175767,15.6131,136.03,135.99,0.25098]
[1726399176250,0.2507174,136.04,136.0,0.25098]
[1726399176460,0.2507174,136.04,136.01,0.25098]
[1726399176763,0.2507174,136.04,136.01,0.12549]
[1726399177350,0.2507174,136.04,136.0,0.25098]
[1726399177554,0.2507174,136.04,136.01,0.12549]
[1726399181391,0.2507174,136.04,136.02,0.25098]
[1726399181783,0.2507174,136.04,136.03,0.12549]
[1726399182601,0.2507174,136.04,136.03,1.8462239]
[1726399183304,0.2507174,136.04,136.03,0.37647]
[1726399185592,0.2507174,136.04,136.03,30.37647]
[1726399188091,0.2507174,136.04,136.03,31.84555426]
[1726399188695,0.2507174,136.04,136.03,30.37647]
[1726399192995,0.2507174,136.04,136.03,36.28154156]
[1726399194392,0.2507174,136.04,136.03,37.75096886]
[1726399194975,0.2507174,136.04,136.03,40.67116493]
[1726399196985,0.2507174,136.04,136.03,39.20173763]
[1726399198583,0.1253174,136.04,136.03,39.20173763]
[1726399202711,0.1253174,136.04,136.03,36.28154156]
[1726399203788,0.1253174,136.04,136.03,36.28132028]
[1726399204312,0.1253174,136.04,136.03,36.28131857]
[1726399206094,0.2507174,136.08,136.03,36.28131857]
[1726399206295,0.2507174,136.08,136.04,6.03033857]
[1726399206519,0.2507174,136.08,136.06,0.12549]
[1726399207633,0.2507174,136.08,136.06,30.12549]
[1726399207815,0.2507174,136.08,136.07,0.12549]
[1726399208486,0.2507174,136.08,136.07,30.37647]
[1726399212623,0.2507174,136.08,136.07,54.153354]
[1726399217019,0.2507174,136.08,136.07,24.153354]
[1726399218294,0.2507174,136.08,136.07,30.05816174]
[1726399220023,0.2507174,136.08,136.07,60.05816174]
[1726399221324,0.2507174,136.08,136.07,30.05816174]
[1726399224320,0.2507174,136.08,136.07,60.05816174]
[1726399225141,0.2507174,136.08,136.07,54.153354]
[1726399225322,0.2507174,136.08,136.07,60.05805434]
[1726399225723,0.2507174,136.08,136.07,60.05802464]
[1726399229332,0.2507174,136.08,136.07,59.68155464]
[1726399229924,0.2507174,136.08,136.07,29.68155464]
[1726399230625,0.2507174,136.08,136.07,30.05802464]
[1726399235437,0.2507174,136.08,136.07,24.153354]
[1726399235642,0.2507174,136.08,136.07,30.05827872]
[1726399236136,0.2507174,136.08,136.07,30.05817856]
[1726399238633,0.2507174,136.08,136.07,5.90482456]
[1726399239913,0.2507174,136.08,136.07,6.28129456]
[1726399240340,0.2507174,136.08,136.07,6.2817099]
[1726399240638,0.2507174,136.08,136.07,6.1562199]
[1726399244339,0.2507174,136.08,136.07,6.2817099]
[1726399245848,0.2507174,136.08,136.07,0.37647]
[1726399246052,0.2507174,136.08,136.07,6.28141289]
[1726399246416,0.2507174,136.08,136.07,6.2813775]
[1726399246623,0.2507174,136.08,136.07,6.28170569]
[1726399249232,0.2507174,136.08,136.07,6.28150199]
[1726399251138,0.2507174,136.08,136.07,36.28150199]
[1726399251552,0.2507174,136.08,136.07,37.31709012]
[1726399251734,0.2507174,136.08,136.07,37.7505693]
[1726399252352,0.2507174,136.12,136.07,36.28150199]
[1726399252672,0.2507174,136.12,136.08,6.02905574]
[1726399252829,0.2507174,136.12,136.09,5.90356574]
[1726399253030,0.2507174,136.12,136.1,6.02905574]
[1726399253229,0.2507174,136.12,136.08,30.12549]
[1726399253230,0.2507174,136.12,136.11,5.90356574]
[1726399253451,0.2507174,136.12,136.11,6.02905574]
[1726399253838,0.2507174,136.12,136.11,36.02905574]
[1726399254551,0.2507174,136.12,136.11,36.28003574]
[1726399256055,0.2507174,136.12,136.11,30.37647]
[1726399256356,0.2507174,136.12,136.11,36.27984654]
[1726399256564,0.2507174,136.12,136.11,36.27967096]
[1726399261851,0.2507174,136.12,136.11,36.27947551]
[1726399268350,0.2507174,136.12,136.11,6.27947551]
[1726399268972,0.2507174,136.12,136.11,0.37647]
[1726399269146,0.2507174,136.12,136.11,6.27944541]
[1726399271582,0.2507174,136.12,136.11,36.27944541]
[1726399272494,0.2507174,136.12,136.11,36.27956413]
[1726399272781,0.2507174,136.12,136.11,36.15407413]
[1726399273460,0.2507174,136.12,136.11,36.02858413]
[1726399273880,0.2507174,136.12,136.11,30.0]
[1726399274068,0.2507174,136.12,136.05,7.68103303]
[1726399274388,0.2507174,136.12,136.06,35.9041818]
[1726399274563,0.2507174,136.12,136.07,5.9041818]
[1726399274767,0.2507174,136.12,136.08,5.9041818]
[1726399274966,0.2507174,136.12,136.09,5.9041818]
[1726399275166,0.2507174,136.12,136.1,5.9041818]
[1726399275481,0.2507174,136.12,136.06,30.0]
[1726399275677,0.2507174,136.12,136.07,5.9042518]
[1726399275881,0.2507174,136.12,136.08,5.9042518]
[1726399276183,0.2507174,136.12,136.09,5.9042518]
[1726399276381,0.2507174,136.12,136.1,5.9042518]
[1726399276684,0.2507174,136.12,136.11,0.12549]
[1726399277754,0.2507174,136.12,136.11,0.37647]
[1726399277974,0.2507174,136.12,136.11,0.25098]
[1726399280582,0.2507174,136.12,136.07,0.25098]
[1726399280884,0.2507174,136.12,136.09,0.25098]
[1726399281083,0.2507174,136.12,136.1,6.02978444]
[1726399281388,0.2507174,136.12,136.1,0.12549]
[1726399283164,22.3932174,136.12,136.07,30.0]
[1726399283484,22.3932174,136.12,136.08,5.9044655]
[1726399283697,22.3932174,136.12,136.09,5.9044655]
[1726399283862,22.3932174,136.12,136.07,30.0]
[1726399284190,22.3932174,136.12,136.08,5.90482483]
[1726399284366,22.3932174,136.12,136.07,30.0]
[1726399284566,22.3932174,136.12,136.08,6.15592511]
[1726399284780,22.3932174,136.12,136.08,0.25098]
[1726399285883,22.3932174,136.12,136.03,30.0]
[1726399286199,22.3932174,136.12,136.04,5.9050484]
[1726399286377,22.3932174,136.12,136.05,5.9050484]
[1726399286584,22.3932174,136.12,136.06,5.90504626]
[1726399286776,22.3932174,136.12,136.07,5.90504626]
[1726399286974,22.3932174,136.12,136.08,5.90504626]
[1726399287195,22.3932174,136.12,136.04,0.25098]
[1726399287492,22.3932174,136.12,136.06,0.12549]
[1726399287708,22.3932174,136.12,136.06,0.25098]
[1726399287891,22.3932174,136.12,136.07,0.12549]
[1726399293998,22.3932174,136.12,136.05,0.25098]
[1726399294305,22.3932174,136.12,136.06,0.12549]
[1726399311931,22.1933,136.11,136.06,0.12549]
[1726399312210,6.491,136.1,136.05,0.12549]
[1726399316504,6.491,136.1,136.05,0.25098]
[1726399316825,6.491,136.1,136.06,0.12549]
[1726399318138,6.491,136.1,136.05,0.12549]
[1726399318503,6.491,136.08,136.0,30.0]
[1726399320009,6.491,136.08,136.01,0.25098]
[1726399320631,15.7023,136.07,136.01,0.25098]
[1726399320931,15.7023,136.07,136.02,0.12549]
[1726399325299,15.7023,136.07,135.98,0.2507174]
[1726399325300,42.1933,136.0,135.98,30.2507174]
[1726399325536,14.3601,135.98,135.94,0.2507174]
[1726399327452,36.41011181,135.97,135.94,0.2507174]
[1726399329524,26.3749,135.97,135.94,0.2507174]
[1726399330528,6.3749,135.97,135.94,0.2507174]
[1726399337549,20.0,135.96,135.94,0.2507174]
[1726399348240,6.3749,135.97,135.94,0.2507174]
[1726399355936,7.6925054,135.99,135.94,0.2507174]
[1726399356140,20.0,135.98,135.94,0.2507174]
[1726399364348,7.6925054,135.99,135.94,0.2507174]
[1726399374046,7.6925054,135.99,135.95,11.82119092]
[1726399374342,7.6925054,135.99,135.94,0.2507174]
[1726399390778,7.6925054,135.99,135.95,4.39558065]
[1726399390982,7.6925054,135.99,135.94,0.2507174]
[1726399392374,7.6925054,135.99,135.95,4.39570422]
[1726399392579,7.6925054,135.99,135.94,0.2507174]
[1726399392881,7.6925054,135.99,135.95,4.39567654]
[1726399393065,7.6925054,135.99,135.94,0.2507174]
[1726399393263,7.6925054,135.99,135.95,4.39567654]
[1726399393482,7.6925054,135.99,135.94,0.2507174]
[1726399393656,7.6925054,135.99,135.95,4.39567652]
[1726399393859,7.6925054,135.99,135.94,0.2507174]
[1726399394254,7.6925054,135.99,135.95,4.39576941]
[1726399394564,7.6925054,135.99,135.94,0.2507174]
[1726399394774,7.6925054,135.99,135.95,4.39572384]
[1726399394965,7.6925054,135.99,135.94,0.2507174]
[1726399395163,7.6925054,135.99,135.95,4.395723]
[1726399395362,7.6925054,135.99,135.94,0.2507174]
[1726399395648,7.6925054,135.99,135.95,4.39572507]
[1726399395853,7.6925054,135.99,135.94,0.2507174]
[1726399396087,7.6925054,135.99,135.95,4.3957711]
[1726399396273,7.6925054,135.99,135.94,0.2507174]
[1726399396579,7.6925054,135.99,135.95,4.39576083]
[1726399396777,7.6925054,135.99,135.94,0.2507174]
[1726399396966,7.6925054,135.99,135.95,4.39571909]
[1726399397167,7.6925054,135.99,135.94,0.2507174]
[1726399397362,7.6925054,135.99,135.95,4.39571997]
[1726399397565,7.6925054,135.99,135.94,0.2507174]
[1726399397770,7.6925054,135.99,135.95,4.39567278]
[1726399398081,7.6925054,135.99,135.94,0.2507174]
[1726399398380,7.6925054,135.99,135.95,4.39567071]
[1726399398550,7.6925054,135.99,135.94,0.2507174]
[1726399398755,7.6925054,135.99,135.95,4.39562385]
[1726399398951,7.6925054,135.99,135.96,4.39562385]
[1726399399155,7.6925054,135.99,135.94,0.2507174]
[1726399399363,7.6925054,135.99,135.95,4.3955698]
[1726399399584,7.6925054,135.99,135.94,0.2507174]
[1726399399875,7.6925054,135.99,135.95,4.39566216]
[1726399400079,7.6925054,135.99,135.94,0.2507174]
[1726399400291,7.6925054,135.99,135.95,4.3956627]
[1726399400460,7.6925054,135.99,135.96,4.39561583]
[1726399400649,7.6925054,135.99,135.94,0.2507174]
[1726399401059,7.6925054,135.99,135.95,4.39561667]
[1726399401258,7.6925054,135.99,135.96,4.39561667]
[1726399401486,7.6925054,135.99,135.94,0.2507174]
[1726399403856,20.0,135.99,135.94,0.2507174]
[1726399411298,20.0,135.99,135.95,7.0328367]
[1726399411592,20.0,135.99,135.94,0.2507174]
[1726399411792,20.0,135.99,135.95,7.03274812]
[1726399411978,20.0,135.99,135.94,0.2507174]
[1726399412493,20.0,135.99,135.95,7.03274679]
[1726399412693,20.0,135.99,135.94,0.2507174]
[1726399412896,20.0,135.99,135.95,7.03271557]
[1726399413104,20.0,135.99,135.94,0.2507174]
[1726399413281,20.0,135.99,135.95,7.03271557]
[1726399413599,20.0,135.99,135.94,0.2507174]
[1726399413773,20.0,135.99,135.95,7.0327544]
[1726399413968,20.0,135.99,135.94,0.2507174]
[1726399414177,20.0,135.99,135.95,7.0327544]
[1726399414378,27.68929895,135.99,135.94,0.2507174]
[1726399415099,27.68929895,135.99,135.95,7.03271691]
[1726399415271,27.68929895,135.99,135.95,14.06543382]
[1726399415475,27.68929895,135.99,135.95,7.03271691]
[1726399419696,7.68929895,135.99,135.96,0.12549]
[1726399419872,7.68929895,135.99,135.96,0.25098]
[1726399420078,6.593,136.04,135.96,0.25098]
[1726399420398,14.28086673,136.04,135.96,0.25098]
[1726399420786,14.28086673,136.04,135.96,30.25098]
[1726399421390,20.0,136.03,135.96,30.25098]
[1726399423379,14.28086673,136.04,135.96,30.25098]
[1726399424802,14.28086673,136.04,135.96,39.03985076]
[1726399425099,14.28086673,136.04,135.96,30.25098]
[1726399425327,14.28086673,136.04,135.96,39.03985224]
[1726399425502,14.28086673,136.04,135.96,30.25098]
[1726399426396,6.593,136.04,135.97,0.12549]
[1726399426606,6.593,136.04,135.98,0.12549]
[1726399426786,6.593,136.04,135.98,0.25098]
[1726399427197,14.05672878,136.06,135.99,0.12549]
[1726399427381,6.363,136.06,136.0,0.12549]
[1726399427593,6.363,136.06,136.0,30.12549]
[1726399431485,6.363,136.06,136.01,0.12549]
[1726399431679,6.363,136.06,136.01,30.12549]
[1726399434513,16.0213,136.07,136.01,30.12549]
[1726399436510,0.2507174,136.08,136.01,30.12549]
[1726399436695,20.2507174,136.08,136.01,30.12549]
[1726399441418,0.2507174,136.08,136.02,0.12549]
[1726399441598,0.2507174,136.08,136.02,30.12549]
[1726399442417,0.2507174,136.08,136.02,30.0]
[1726399442630,26.6137174,136.08,136.02,30.0]
[1726399442913,26.6137174,136.08,135.99,16.1995]
[1726399443113,26.6137174,136.08,136.0,30.0]
[1726399448819,26.6137174,136.08,135.99,16.32499]
[1726399449127,26.6137174,136.08,135.96,6.3025]
[1726399449128,0.12549,136.07,135.96,6.3025]
[1726399449303,0.25098,136.07,135.96,6.3025]
[1726399450720,0.25098,136.07,135.97,0.25098]
[1726399451024,0.25098,136.07,135.98,0.12549]
[1726399451530,0.25098,136.07,135.97,0.12549]
[1726399451697,20.0,136.05,135.95,15.5645]
[1726399452407,6.628,136.03,135.95,15.5645]
[1726399456520,6.628,136.03,135.96,0.37647]
[1726399459401,6.628,136.03,135.96,0.25098]
[1726399474834,6.628,136.03,135.97,0.12549]
[1726399483018,6.628,136.03,135.98,23.902374]
[1726399483233,6.628,136.03,135.99,0.12549]
[1726399485838,6.628,136.03,135.98,0.12549]
[1726399486136,6.628,136.03,135.97,0.25098]
[1726399486339,6.628,136.03,135.98,0.12549]
[1726399493035,6.628,136.03,135.98,0.25098]
[1726399493240,21.8423,136.06,136.0,0.12549]
[1726399493446,21.8423,136.06,136.01,0.12549]
[1726399493822,21.8423,136.06,136.02,0.12549]
[1726399494519,21.8423,136.06,136.02,0.25098]
[1726399500545,21.8423,136.06,136.02,0.12549]
[1726399500719,21.8423,136.06,135.98,30.0]
[1726399501122,6.3752,136.05,135.98,30.0]
[1726399501337,6.3752,136.05,135.92,16.4883]
[1726399501533,6.3752,136.05,135.95,30.0]
[1726399502223,6.3752,136.05,135.98,7.3535]
[1726399502443,7.351,136.04,135.98,7.3535]
[1726399502821,7.3514,136.03,135.98,7.3535]
[1726399503025,22.1371,136.02,135.98,7.3539]
[1726399504434,29.4889,136.02,135.97,7.3545]
[1726399504754,29.4889,136.02,135.96,7.355]
[1726399504755,7.3524,136.01,135.96,7.355]
[1726399504926,7.3529,136.0,135.95,7.3555]
[1726399505327,7.3524,136.01,135.96,7.355]
[1726399508927,7.3524,136.01,135.97,5.90978449]
[1726399509127,7.3524,136.01,135.96,7.355]
[1726399509637,7.3524,136.01,135.97,5.90974199]
[1726399509838,7.3524,136.01,135.96,7.355]
[1726399510037,7.3524,136.01,135.97,5.90980174]
[1726399510223,7.3524,136.01,135.96,7.355]
[1726399510428,7.3524,136.01,135.97,5.90980067]
[1726399510628,7.3524,136.01,135.96,7.355]
[1726399510929,7.3524,136.01,135.97,5.90977079]
[1726399511140,7.3524,136.01,135.96,7.355]
[1726399511331,7.3524,136.01,135.97,5.90977186]
[1726399511530,7.3524,136.01,135.96,7.355]
[1726399511731,7.3524,136.01,135.97,5.90980174]
[1726399511945,7.3524,136.01,135.96,7.355]
[1726399512155,7.3524,136.01,135.97,5.90980174]
[1726399512361,7.3524,136.01,135.96,7.355]
[1726399512653,7.3524,136.01,135.97,5.90980067]
[1726399512951,7.3524,136.01,135.96,7.355]
[1726399513254,7.3524,136.01,135.97,5.90977079]
[1726399513435,7.3524,136.01,135.96,7.355]
[1726399513838,7.3524,136.01,135.97,5.90980223]
[1726399514137,7.3524,136.01,135.96,7.355]
[1726399514335,7.3524,136.01,135.97,5.90980222]
[1726399514545,7.353,136.0,135.95,7.3555]
[1726399514738,6.1968,135.99,135.96,5.909774]
[1726399514943,13.5504,135.99,135.94,7.6067174]
[1726399515151,21.24774494,135.99,135.95,5.91033228]
[1726399515336,21.24774494,135.99,135.94,7.6067174]
[1726399515537,21.24774494,135.99,135.95,5.91033228]
[1726399515841,13.5504,135.99,135.95,7.3555]
[1726399518860,7.69711191,136.01,135.9,0.2507174]
[1726399518861,20.0,135.92,135.91,5.9118742]
[1726399519063,42.50388702,135.91,135.9,0.2507174]
[1726399519360,69.78701424,135.91,135.9,0.2507174]
[1726399519954,69.78701424,135.91,135.86,0.2507174]
[1726399519955,20.0,135.88,135.86,0.2507174]
[1726399522248,20.0,135.87,135.86,0.2507174]
[1726399526441,27.70278125,135.87,135.86,0.2507174]
[1726399527165,20.0,135.87,135.86,0.2507174]
[1726399530565,27.3599,135.87,135.86,0.2507174]
[1726399533748,33.6876,135.87,135.86,0.2507174]
[1726399534752,26.3277,135.87,135.86,0.2507174]
[1726399534954,33.6876,135.87,135.86,0.2507174]
[1726399536468,20.0,135.87,135.86,0.2507174]
[1726399537167,7.7014624,135.91,135.86,0.2507174]
[1726399537338,16.6319,135.96,135.86,0.2507174]
[1726399537339,6.5675,135.95,135.86,0.2507174]
[1726399537545,6.5675,135.95,135.87,0.12549]
[1726399537745,6.5675,135.95,135.87,0.25098]
[1726399538272,6.5675,135.95,135.89,7.3588]
[1726399538273,7.3566,135.94,135.89,7.3588]
[1726399538642,6.5675,135.95,135.87,0.12549]
[1726399538846,7.3574,135.92,135.86,7.6107174]
[1726399539149,7.358,135.91,135.86,7.6107174]
[1726399540383,7.3572,135.93,135.87,7.3598]
[1726399540673,20.0,135.92,135.88,7.3592]
[1726399541188,27.3562,135.94,135.89,7.3588]
[1726399542874,7.3567,135.93,135.88,7.3593]
[1726399543187,20.0,135.92,135.88,7.3593]
[1726399543855,27.3574,135.92,135.87,7.3595]
[1726399545887,27.3574,135.92,135.86,0.2507174]
[1726399545888,20.0,135.94,135.89,7.3588]
[1726399546079,13.9236,135.95,135.9,7.3583]
[1726399547686,20.0,135.94,135.9,7.3583]
[1726399553467,27.3561,135.94,135.9,7.3583]
[1726399559484,20.0,135.94,135.9,7.3583]
[1726399560695,27.3563,135.94,135.89,7.3588]
[1726399561893,35.04961341,135.94,135.89,7.3588]
[1726399563299,27.3563,135.94,135.89,7.3588]
[1726399565302,20.0,135.94,135.88,0.12549]
[1726399565704,20.0,135.94,135.9,7.3582]
[1726399566077,20.0,135.94,135.91,7.3578]
[1726399567395,15.04849523,135.96,135.91,7.3578]
[1726399568106,20.0,135.95,135.91,7.3578]
[1726399568606,27.3558,135.95,135.9,7.3582]
[1726399569476,27.3558,135.95,135.88,0.12549]
[1726399569477,20.0,135.95,135.92,7.3572]
[1726399569688,20.0,135.95,135.88,0.12549]
[1726399570611,20.0,135.95,135.91,7.3577]
[1726399576694,6.4715,135.98,135.88,4.5220979]
[1726399576695,7.3546,135.97,135.93,7.3566]
[1726399576895,14.16451458,135.98,135.93,7.3566]
[1726399577489,21.51861458,135.98,135.93,7.3566]
[1726399577693,6.4715,135.98,135.94,7.356]
[1726399579622,13.8256,135.98,135.94,7.356]
[1726399583611,13.8256,135.98,135.93,7.3566]
[1726399584003,6.4715,135.98,135.92,7.3572]
[1726399584329,7.3558,135.95,135.9,7.3581]
[1726399587303,7.3552,135.96,135.92,7.3572]
[1726399589204,27.3545,135.97,135.92,7.3572]
[1726399591214,27.3545,135.97,135.93,7.3567]
[1726399609628,27.3545,135.97,135.92,7.3572]
[1726399609832,7.3551,135.96,135.92,7.3572]
[1726399612849,7.3551,135.96,135.91,7.3576]
[1726399614050,7.3551,135.96,135.92,4.39647532]
[1726399614233,7.3551,135.96,135.91,7.3576]
[1726399614544,7.3551,135.96,135.92,4.39647448]
[1726399614749,7.3551,135.96,135.91,7.3576]
[1726399614951,7.3551,135.96,135.92,4.39647532]
[1726399615335,7.3556,135.95,135.9,7.3582]
[1726399615533,7.3562,135.94,135.9,7.3582]
[1726399615930,7.3562,135.94,135.91,8.79293057]
[1726399616441,7.3562,135.94,135.91,4.39643015]
[1726399620140,15.04884008,135.95,135.91,4.39643015]
[1726399622451,7.3562,135.94,135.91,4.39643015]
[1726399623530,15.04884008,135.95,135.91,4.39643015]
[1726399625641,15.04884008,135.95,135.9,7.3582]
[1726399626455,7.3562,135.94,135.9,7.3582]
[1726399626652,7.3573,135.92,135.88,7.3594]
[1726399626854,7.3573,135.92,135.89,4.39713298]
[1726399627047,7.3568,135.93,135.89,4.39713298]
[1726399627239,27.3568,135.93,135.88,7.3594]
[1726399627557,7.3573,135.92,135.88,7.3594]
[1726399627864,7.3573,135.92,135.89,4.39716144]
[1726399628038,7.3573,135.92,135.88,7.3594]
[1726399628239,7.3573,135.92,135.89,4.39716228]
[1726399628447,7.3573,135.92,135.88,7.3594]
[1726399628649,7.3573,135.92,135.89,4.39716138]
[1726399628856,7.3573,135.92,135.88,7.3594]
[1726399629059,7.3573,135.92,135.89,4.39716177]
[1726399629362,7.3573,135.92,135.88,7.3594]
[1726399629653,27.69505055,135.93,135.89,4.39716093]
[1726399629861,27.69505055,135.93,135.89,7.3587]
[1726399630041,20.0,135.93,135.89,7.3587]
[1726399632150,20.0,135.93,135.9,7.3583]
[1726399634062,13.8781,135.94,135.9,7.3583]
[1726399634670,6.5214,135.94,135.91,7.3577]
[1726399636047,20.0,135.94,135.92,7.3572]
[1726399636252,15.18029927,135.96,135.92,7.3572]
[1726399636457,20.0,135.95,135.92,7.3572]
[1726399648459,7.82519927,135.96,135.92,7.3572]
[1726399648761,27.3551,135.96,135.92,7.3572]
[1726399667497,20.0,135.96,135.92,7.3572]
[1726399672610,7.354,135.98,135.93,7.3566]
[1726399673019,20.0,135.97,135.94,7.3561]
[1726399673494,7.3535,135.99,135.94,7.3561]
[1726399674909,20.0,135.98,135.94,7.3561]
[1726399675416,20.0,135.98,135.95,5.82747016]
[1726399675605,27.6037174,136.0,135.95,13.18287016]
[1726399675785,27.6037174,136.0,135.95,7.3554]
[1726399676501,7.3535,135.99,135.95,7.3554]
[1726399676889,20.0,135.98,135.95,7.3554]
[1726399678194,7.3535,135.99,135.95,7.3554]
[1726399678195,27.6037174,136.0,135.95,7.3554]
[1726399679619,20.0,135.98,135.95,7.3554]
[1726399680307,7.3546,135.97,135.93,7.3561]
[1726399680526,17.14860967,135.97,135.94,5.82764955]
[1726399680712,17.14860967,135.97,135.92,7.3571]
[1726399680903,17.14860967,135.97,135.93,10.22368141]
[1726399681098,17.14860967,135.97,135.94,5.82768827]
[1726399681303,17.14860967,135.97,135.92,7.3571]
[1726399681505,17.14860967,135.97,135.93,10.22394385]
[1726399681698,17.14860967,135.97,135.94,5.82783542]
[1726399681901,17.14860967,135.97,135.92,7.3571]
[1726399682103,17.14860967,135.97,135.93,4.39610843]
[1726399682430,17.14860967,135.97,135.94,5.82783756]
[1726399682735,17.14860967,135.97,135.92,7.3571]